bitfinex/quotes_BTCUSD_20250802
["timestamp","ask_amount","ask_price","bid_price","bid_amount"]
[1754129827808,0.52335865,113810.0,113800.0,0.31190381]
[1754129830007,0.51511422,113810.0,113800.0,0.31190381]
[1754129830146,0.51511422,113810.0,113800.0,0.0335]
[1754129830343,0.51511422,113810.0,113800.0,0.31190381]
[1754129833641,0.51511422,113810.0,113800.0,0.0335]
[1754129833836,0.51511422,113810.0,113800.0,0.31190381]
[1754129841065,0.51511422,113810.0,113800.0,0.44690381]
[1754129841285,0.51511422,113810.0,113800.0,0.0335]
[1754129841507,0.52336165,113810.0,113800.0,0.13504]
[1754129841735,0.52336165,113810.0,113800.0,0.41344381]
[1754129841959,0.52336165,113810.0,113800.0,0.43998381]
[1754129842178,0.52336165,113810.0,113800.0,0.16462]
[1754129842652,0.50960812,113810.0,113800.0,0.44302381]
[1754129843330,0.50960812,113810.0,113800.0,0.16659]
[1754129843548,0.50960812,113810.0,113800.0,0.44499381]
[1754129845510,0.50960868,113810.0,113800.0,0.44499381]
[1754129846852,0.52336282,113810.0,113800.0,0.44499381]
[1754129847035,0.38844282,113810.0,113800.0,0.44499381]
[1754129847265,0.52348282,113810.0,113800.0,0.16659]
[1754129847471,0.52348282,113810.0,113800.0,0.44499381]
[1754129851202,0.38844282,113810.0,113800.0,0.44499381]
[1754129851437,0.3884431,113810.0,113800.0,0.44499381]
[1754129853225,0.3884431,113810.0,113800.0,0.16659]
[1754129853441,0.3884431,113810.0,113800.0,0.44499381]
[1754129853895,0.3884431,113810.0,113800.0,0.16659]
[1754129854324,0.3884431,113810.0,113800.0,0.44499381]
[1754129855789,0.02200241,113810.0,113800.0,0.44499381]
[1754129856120,0.02200241,113810.0,113800.0,0.16659]
[1754129856803,0.00824827,113810.0,113800.0,0.16659]
[1754129857820,0.34824827,113810.0,113800.0,0.16659]
[1754129858259,0.62665208,113810.0,113800.0,0.16659]
[1754129858471,0.34824827,113810.0,113800.0,0.16659]
[1754129858694,0.62665208,113810.0,113800.0,0.02658]
[1754129858911,5.64524078,113810.0,113800.0,4e-05]
[1754129859129,5.671444,113810.0,113800.0,4e-05]
[1754129859338,5.68791951,113810.0,113800.0,4e-05]
[1754129859554,5.70167445,113810.0,113800.0,4e-05]
[1754129860423,5.70166984,113810.0,113800.0,4e-05]
[1754129862687,5.72809684,113810.0,113800.0,4e-05]
[1754129863128,5.72808949,113810.0,113800.0,4e-05]
[1754129863296,5.90382097,113810.0,113800.0,4e-05]
[1754129863498,0.90382097,113810.0,113800.0,4e-05]
[1754129863912,5.90841507,113810.0,113800.0,4e-05]
[1754129864166,5.73268359,113810.0,113800.0,4e-05]
[1754129864954,5.86784359,113810.0,113800.0,4e-05]
[1754129866110,5.58943978,113810.0,113800.0,4e-05]
[1754129866322,5.86784359,113810.0,113800.0,4e-05]
[1754129868834,5.85544359,113810.0,113800.0,4e-05]
[1754129870137,5.85544359,113810.0,113800.0,0.02697]
[1754129870679,6.03117507,113810.0,113800.0,0.02697]
[1754129871075,6.03117507,113810.0,113800.0,4e-05]
[1754129872727,6.04357507,113810.0,113800.0,4e-05]
[1754129873173,6.12777496,113810.0,113800.0,4e-05]
[1754129875731,6.11537496,113810.0,113800.0,0.02723]
[1754129876842,1.11737496,113810.0,113800.0,0.02723]
[1754129877056,6.13160496,113810.0,113800.0,4e-05]
[1754129877482,5.85320115,113810.0,113800.0,4e-05]
[1754129877690,6.11837496,113810.0,113800.0,4e-05]
[1754129878116,1.13160496,113810.0,113800.0,4e-05]
[1754129878328,6.11837496,113810.0,113800.0,4e-05]
[1754129878545,5.83997115,113810.0,113800.0,4e-05]
[1754129878764,6.11837496,113810.0,113800.0,0.02723]
[1754129880027,6.13160496,113810.0,113800.0,4e-05]
[1754129880319,6.11837496,113810.0,113800.0,4e-05]
[1754129880744,6.1183601,113810.0,113800.0,4e-05]
[1754129881139,6.1183601,113810.0,113800.0,0.02723]
[1754129881599,6.1315901,113810.0,113800.0,4e-05]
[1754129881807,6.1183601,113810.0,113800.0,4e-05]
[1754129882244,6.1183601,113810.0,113800.0,0.02723]
[1754129882661,6.11836296,113810.0,113800.0,0.02723]
[1754129883084,5.77836296,113810.0,113800.0,0.02723]
[1754129884913,6.11836296,113810.0,113800.0,0.02723]
[1754129886230,6.11836296,113810.0,113800.0,0.03021]
[1754129888419,6.11837277,113810.0,113800.0,0.03021]
[1754129888693,6.11837288,113810.0,113800.0,0.03021]
[1754129888902,6.41000669,113810.0,113800.0,4e-05]
[1754129889113,5.67746759,113810.0,113800.0,4e-05]
[1754129889331,5.9426414,113810.0,113800.0,0.03236]
[1754129889551,0.66423759,113810.0,113800.0,0.03236]
[1754129889785,5.92888646,113810.0,113800.0,0.03236]
[1754129889996,6.10461899,113810.0,113800.0,0.03021]
[1754129890422,6.104621,113810.0,113800.0,4e-05]
[1754129890637,6.4672247,113810.0,113800.0,4e-05]
[1754129890861,5.82621719,113810.0,113800.0,4e-05]
[1754129891068,6.38302481,113810.0,113800.0,4e-05]
[1754129891273,6.104621,113810.0,113800.0,4e-05]
[1754129891481,5.82621719,113810.0,113800.0,4e-05]
[1754129891688,1.4552505,113810.0,113800.0,4e-05]
[1754129891893,6.39741481,113810.0,113800.0,4e-05]
[1754129892587,5.85436377,113810.0,113800.0,4e-05]
[1754129892799,6.41117139,113810.0,113800.0,4e-05]
[1754129894498,6.43014295,113810.0,113800.0,4e-05]
[1754129894753,6.44590875,113810.0,113800.0,4e-05]
[1754129894991,6.76676158,113810.0,113800.0,4e-05]
[1754129895194,6.48835777,113810.0,113800.0,4e-05]
[1754129896291,5.93155015,113810.0,113800.0,4e-05]
[1754129896708,6.48835777,113810.0,113800.0,4e-05]
[1754129897333,5.93235015,113810.0,113800.0,4e-05]
[1754129897542,6.48915777,113810.0,113800.0,4e-05]
[1754129899867,1.48915777,113810.0,113800.0,4e-05]
[1754129900088,6.48915777,113810.0,113800.0,4e-05]
[1754129900309,6.48912339,113810.0,113800.0,4e-05]
[1754129901393,5.94031577,113810.0,113800.0,4e-05]
[1754129901604,6.49712339,113810.0,113800.0,4e-05]
[1754129902946,6.48889596,113810.0,113800.0,4e-05]
[1754129903161,6.49712134,113810.0,113800.0,4e-05]
[1754129905154,6.48273134,113810.0,113800.0,4e-05]
[1754129905875,6.48305134,113810.0,113800.0,4e-05]
[1754129906659,6.53591134,113810.0,113800.0,4e-05]
[1754129907528,6.53591134,113810.0,113800.0,0.02815]
[1754129908720,6.53491134,113810.0,113800.0,0.02815]
[1754129908929,6.53489763,113810.0,113800.0,0.02815]
[1754129909111,6.53289763,113810.0,113800.0,0.02815]
[1754129909531,6.53689763,113810.0,113800.0,0.02815]
[1754129911740,6.5286754,113810.0,113800.0,0.02815]
[1754129911959,6.53689854,113810.0,113800.0,0.02815]
[1754129913712,5.98009092,113810.0,113800.0,0.02815]
[1754129913939,6.53689854,113810.0,113800.0,0.02815]
[1754129914364,6.53689854,113810.0,113800.0,0.02534768]
[1754129914584,6.53677854,113810.0,113800.0,0.03036768]
[1754129914789,6.53678423,113810.0,113800.0,0.03036768]
[1754129915192,6.52302765,113810.0,113800.0,0.03036768]
[1754129917431,5.96622003,113810.0,113800.0,0.03036768]
[1754129917708,6.52302765,113810.0,113800.0,0.03036768]
[1754129917916,5.9799767,113810.0,113800.0,0.03036768]
[1754129918131,6.53678432,113810.0,113800.0,0.03036768]
[1754129918972,5.9799767,113810.0,113800.0,0.03036768]
[1754129919181,6.53678432,113810.0,113800.0,0.03036768]
[1754129920453,1.53678432,113810.0,113800.0,0.03036768]
[1754129920662,6.53679799,113810.0,113800.0,0.03036768]
[1754129922153,6.53679799,113810.0,113800.0,0.02828768]
[1754129923503,1.53680591,113810.0,113800.0,0.02828768]
[1754129923716,6.53680591,113810.0,113800.0,0.02828768]
[1754129925561,5.91574692,113800.0,113790.0,0.03129]
[1754129925772,6.82708543,113800.0,113790.0,0.03337]
[1754129926400,6.85351643,113800.0,113790.0,0.03337]
[1754129926588,6.90637643,113800.0,113790.0,0.03337]
[1754129926808,6.90637643,113800.0,113790.0,0.0338488]
[1754129927190,6.90737643,113800.0,113790.0,0.0338488]
[1754129927388,1.90737643,113800.0,113790.0,0.0338488]
[1754129927825,6.90737643,113800.0,113790.0,0.0338488]
[1754129928868,6.90837643,113800.0,113790.0,0.0338488]
[1754129929311,6.90838949,113800.0,113790.0,0.0338488]
[1754129930715,6.92214672,113800.0,113790.0,0.0338488]
[1754129931605,6.86928672,113800.0,113790.0,0.02926252]
[1754129934998,6.86104989,113800.0,113790.0,0.02926252]
[1754129935215,6.86929623,113800.0,113790.0,0.02926252]
[1754129937020,1.86929623,113800.0,113790.0,0.02926252]
[1754129937230,6.86929623,113800.0,113790.0,0.02926252]
[1754129937849,6.31248861,113800.0,113790.0,0.02926252]
[1754129938081,6.86929623,113800.0,113790.0,0.02926252]
[1754129940698,7.14770201,113800.0,113790.0,0.02926252]
[1754129940899,7.41312103,113800.0,113790.0,0.0004788]
[1754129941109,7.41312002,113800.0,113790.0,0.0004788]
[1754129941357,7.39936279,113800.0,113790.0,0.0004788]
[1754129941874,7.39836279,113800.0,113790.0,0.0004788]
[1754129942049,7.39736279,113800.0,113790.0,0.0004788]
[1754129942260,2.38239123,113800.0,113790.0,0.0004788]
[1754129942413,2.40136294,113800.0,113790.0,0.0004788]
[1754129942620,7.39936294,113800.0,113790.0,0.0004788]
[1754129942822,7.39936075,113800.0,113790.0,0.0004788]
[1754129943030,7.40036075,113800.0,113790.0,0.0004788]
[1754129943434,7.40436075,113800.0,113790.0,0.0004788]
[1754129944215,7.41811914,113800.0,113790.0,0.0004788]
[1754129944823,5.79286,113770.0,113760.0,0.00477498]
[1754129945035,5.79286,113770.0,113760.0,0.00696295]
[1754129945036,6.47561364,113770.0,113760.0,0.00696295]
[1754129945450,6.50664674,113770.0,113760.0,0.03692295]
[1754129946006,6.50664674,113770.0,113760.0,0.03992295]
[1754129946214,6.05244967,113770.0,113760.0,0.04192295]
[1754129946415,6.33085348,113770.0,113760.0,0.04192295]
[1754129946681,5.59958967,113770.0,113760.0,0.04192295]
[1754129946812,5.8697568,113770.0,113760.0,0.04192295]
[1754129947014,6.07798817,113770.0,113760.0,0.04192295]
[1754129948290,6.09174791,113770.0,113760.0,0.04192295]
[1754129948494,6.09174624,113770.0,113760.0,0.04192295]
[1754129948695,6.1014405,113770.0,113760.0,0.04192295]
[1754129949157,6.27723376,113770.0,113760.0,0.04192295]
[1754129949560,6.1014405,113770.0,113760.0,0.04192295]
[1754129949900,6.1014405,113770.0,113760.0,0.03692295]
[1754129950022,6.107625,113770.0,113760.0,0.03692295]
[1754129950223,6.107625,113770.0,113760.0,0.03892295]
[1754129951855,6.40517717,113770.0,113760.0,0.00682295]
[1754129952083,7.37429676,113770.0,113760.0,0.00682295]
[1754129952286,7.37429676,113770.0,113750.0,0.0093]
[1754129952287,5.61111774,113760.0,113750.0,0.0093]
[1754129952559,6.42272789,113760.0,113750.0,0.0093]
[1754129952768,6.39772789,113760.0,113750.0,0.0093]
[1754129952979,1.66181778,113760.0,113750.0,0.03926]
[1754129953196,6.66181778,113760.0,113750.0,0.03926]
[1754129953401,6.68192778,113760.0,113750.0,0.0093]
[1754129953537,6.16393449,113760.0,113750.0,0.0093]
[1754129953945,6.72074211,113760.0,113750.0,0.0093]
[1754129954145,6.70329309,113760.0,113750.0,0.0093]
[1754129954412,6.70328649,113760.0,113750.0,0.0093]
[1754129954819,6.70528649,113760.0,113750.0,0.0093]
[1754129955456,6.70628649,113760.0,113750.0,0.0093]
[1754129956523,6.14947887,113760.0,113750.0,0.0093]
[1754129956727,6.70628649,113760.0,113750.0,0.0093]
[1754129956942,6.16324124,113760.0,113750.0,0.0093]
[1754129957152,6.72004886,113760.0,113750.0,0.0093]
[1754129957327,6.72003654,113760.0,113750.0,0.0093]
[1754129957546,6.70359072,113760.0,113750.0,0.0093]
[1754129957749,6.1467831,113760.0,113750.0,0.0093]
[1754129957915,6.72002097,113760.0,113750.0,0.0093]
[1754129958305,6.16321335,113760.0,113750.0,0.0093]
[1754129958527,5.72464623,113760.0,113750.0,0.0414]
[1754129958747,5.67178623,113760.0,113750.0,0.0414]
[1754129958962,6.08639004,113760.0,113750.0,0.0414]
[1754129959171,5.80798623,113760.0,113750.0,0.0414]
[1754129959420,6.26219876,113760.0,113750.0,0.0414]
[1754129959818,5.80798623,113760.0,113750.0,0.0414]
[1754129960028,6.08639004,113760.0,113750.0,0.0414]
[1754129960460,6.08637631,113760.0,113750.0,0.0414]
[1754129960878,1.08684379,113760.0,113750.0,0.0414]
[1754129961089,5.89216614,113760.0,113750.0,0.0414]
[1754129961288,5.67176625,113760.0,113750.0,0.0414]
[1754129961512,5.79150542,113760.0,113750.0,0.0414]
[1754129961769,5.64096226,113760.0,113750.0,0.0414]
[1754129962005,5.57720226,113760.0,113750.0,0.0414]
[1754129962208,0.15296237,113760.0,113750.0,0.32027754]
[1754129962632,0.4792,113760.0,113750.0,0.0414]
[1754129966150,5.01676064,113760.0,113750.0,0.32027754]
[1754129966582,5.35676064,113760.0,113750.0,0.32027754]
[1754129967035,0.35676064,113760.0,113750.0,0.32027754]
[1754129967446,0.65040836,113770.0,113750.0,0.32027754]
[1754129967661,5.01428836,113770.0,113760.0,0.30975754]
[1754129967875,5.01428836,113770.0,113760.0,0.31176754]
[1754129968100,5.02804761,113770.0,113760.0,0.31176754]
[1754129968358,0.02804761,113770.0,113760.0,0.31176754]
[1754129968575,0.52804761,113770.0,113760.0,0.31176754]
[1754129969436,0.52804761,113770.0,113760.0,0.31276754]
[1754129969674,0.02804761,113770.0,113760.0,0.31276754]
[1754129969891,0.02804761,113770.0,113760.0,0.31476754]
[1754129971252,0.02804761,113770.0,113760.0,0.03589]
[1754129971476,0.36804761,113770.0,113760.0,0.03589]
[1754129973894,0.36804761,113770.0,113760.0,0.31476754]
[1754129974542,0.36804761,113770.0,113760.0,0.03589]
[1754129974761,0.36804761,113770.0,113760.0,0.31476754]
[1754129975003,0.35428836,113770.0,113760.0,0.31476754]
[1754129976543,0.00969426,113770.0,113760.0,0.67784497]
[1754129976762,0.34,113770.0,113760.0,0.67784497]
[1754129977635,0.34928815,113770.0,113760.0,0.67784497]
[1754129979130,0.36304629,113770.0,113760.0,0.67784497]
[1754129982807,0.36304629,113770.0,113760.0,0.39896743]
[1754129983025,0.36304629,113770.0,113760.0,0.67784497]
[1754129983916,0.35375814,113770.0,113760.0,0.67784497]
[1754129984535,0.34,113770.0,113760.0,0.67684497]
[1754129984761,0.34,113770.0,113760.0,0.67984497]
[1754129984973,0.34,113770.0,113760.0,0.67784497]
[1754129987770,0.35375736,113770.0,113760.0,0.39896743]
[1754129988606,0.35375736,113770.0,113760.0,0.40296743]
[1754129989187,0.35375736,113770.0,113760.0,0.12408989]
[1754129989398,0.35375736,113770.0,113760.0,0.40296743]
[1754129990531,0.35375736,113770.0,113760.0,0.53900743]
[1754129995068,0.35375736,113770.0,113760.0,0.81788497]
[1754129995722,0.35375736,113770.0,113760.0,0.68184497]
[1754129995931,0.35375736,113770.0,113760.0,0.50925743]
[1754129996114,0.35375736,113770.0,113760.0,0.53635743]
[1754129997890,0.34,113770.0,113760.0,0.53635743]
[1754129998121,0.3618,113770.0,113760.0,0.007]
[1754129998330,0.3618,113770.0,113760.0,0.14292]
[1754130000734,0.3618,113770.0,113760.0,0.42179754]
[1754130000951,0.37555846,113770.0,113760.0,0.42179754]
[1754130001138,0.37555846,113770.0,113760.0,0.14292]
[1754130002449,0.37555846,113770.0,113760.0,0.007]
[1754130002676,0.37555846,113770.0,113760.0,0.14296]
[1754130002887,0.35375846,113770.0,113760.0,0.44893754]
[1754130003110,0.35375846,113770.0,113760.0,0.45196754]
[1754130004185,0.35375846,113770.0,113760.0,0.31600754]
[1754130004463,0.35375846,113770.0,113760.0,0.45196754]
[1754130006773,0.35375846,113770.0,113760.0,0.45184754]
[1754130007671,0.35375846,113770.0,113760.0,0.007]
[1754130007898,0.37555846,113770.0,113760.0,0.14284]
[1754130008819,0.3618,113770.0,113760.0,0.14284]
[1754130009063,5.3618,113770.0,113760.0,0.14284]
[1754130009621,5.64067754,113770.0,113760.0,0.007]
[1754130009822,5.64067754,113770.0,113760.0,0.14284]
[1754130010020,5.92487743,113770.0,113760.0,0.14284]
[1754130010888,5.64599989,113770.0,113760.0,0.14284]
[1754130011105,5.78183989,113770.0,113760.0,0.13984]
[1754130011314,5.78183989,113770.0,113760.0,0.13684]
[1754130011526,5.78183989,113770.0,113760.0,0.001]
[1754130011740,5.7955993,113770.0,113760.0,0.003]
[1754130013214,6.07447684,113770.0,113760.0,0.003]
[1754130014945,5.7955993,113770.0,113760.0,0.003]
[1754130017753,5.35375941,113770.0,113760.0,0.31397754]
[1754130018628,5.35375941,113770.0,113760.0,0.45001754]
[1754130019275,5.35375941,113770.0,113760.0,0.17114]
[1754130020800,5.36199443,113770.0,113760.0,0.17114]
[1754130021238,5.35375941,113770.0,113760.0,0.17114]
[1754130021463,5.36199397,113770.0,113760.0,0.17114]
[1754130023815,5.36199572,113770.0,113760.0,0.0351]
[1754130024029,5.36199572,113770.0,113760.0,0.16921]
[1754130024178,5.38379572,113770.0,113760.0,0.13908]
[1754130025267,5.38379572,113770.0,113760.0,0.003]
[1754130025540,5.38379572,113770.0,113760.0,0.139]
[1754130027249,5.36199572,113770.0,113760.0,0.16686]
[1754130027458,0.36199572,113770.0,113760.0,0.17004]
[1754130027679,5.36199572,113770.0,113760.0,0.17004]
[1754130028323,5.36199572,113770.0,113760.0,0.17213]
[1754130028800,5.36199572,113770.0,113760.0,0.03613]
[1754130029013,5.36199572,113770.0,113760.0,0.17213]
[1754130031414,0.36199572,113770.0,113760.0,0.17213]
[1754130031847,5.36199572,113770.0,113760.0,0.17213]
[1754130033788,5.36199572,113770.0,113760.0,0.03613]
[1754130034018,5.64087326,113770.0,113760.0,0.03613]
[1754130034443,5.64087326,113770.0,113760.0,0.03404]
[1754130035074,5.36199572,113770.0,113760.0,0.03404]
[1754130038299,5.36199975,113770.0,113760.0,0.03404]
[1754130039408,5.36818844,113770.0,113760.0,0.03404]
[1754130039823,5.35442903,113770.0,113760.0,0.03404]
[1754130042083,5.35442903,113770.0,113760.0,0.03613]
[1754130042721,5.36818861,113770.0,113760.0,0.03613]
[1754130043811,5.35442903,113770.0,113760.0,0.03613]
[1754130045895,0.35442903,113770.0,113760.0,0.03613]
[1754130046106,5.35442903,113770.0,113760.0,0.03613]
[1754130046760,5.36818859,113770.0,113760.0,0.03613]
[1754130046970,5.36818859,113770.0,113760.0,0.31500754]
[1754130047177,5.36819015,113770.0,113760.0,0.31500754]
[1754130047385,5.36819015,113770.0,113760.0,0.17301]
[1754130055949,5.36820304,113770.0,113760.0,0.17301]
[1754130058295,5.36820304,113770.0,113760.0,0.13984]
[1754130058296,5.66684058,113770.0,113760.0,0.13984]
[1754130058507,5.68334776,113770.0,113760.0,0.13984]
[1754130058944,5.54131398,113770.0,113760.0,0.001]
[1754130059174,5.82015355,113770.0,113760.0,0.001]
[1754130059394,5.54131398,113770.0,113760.0,0.002]
[1754130059607,5.82015355,113770.0,113760.0,0.001]
[1754130059834,5.80639399,113770.0,113760.0,0.001]
[1754130060254,5.0,113760.0,113750.0,0.45675957]
[1754130060504,5.0,113760.0,113750.0,0.45890957]
[1754130060905,5.0,113760.0,113750.0,0.17999]
[1754130061594,0.4966,113770.0,113750.0,0.17999]
[1754130061818,5.0,113760.0,113750.0,0.17999]
[1754130062246,5.0,113760.0,113750.0,0.18199]
[1754130062468,5.0,113760.0,113750.0,0.17999]
[1754130062680,0.01375997,113760.0,113750.0,0.17999]
[1754130063135,0.01375997,113760.0,113750.0,0.18099]
[1754130063352,0.01375997,113760.0,113750.0,0.17999]
[1754130063556,0.01375997,113760.0,113750.0,0.18199]
[1754130064008,5.0,113760.0,113750.0,0.18199]
[1754130064662,5.0,113760.0,113750.0,0.18195]
[1754130064839,5.0,113760.0,113750.0,0.18295]
[1754130066799,0.01375989,113760.0,113750.0,0.46175847]
[1754130067023,0.01375989,113760.0,113750.0,0.18295]
[1754130068715,0.01375989,113760.0,113750.0,0.04623]
[1754130068928,0.01375989,113760.0,113750.0,0.18287]
[1754130070801,0.01375989,113760.0,113750.0,0.04623]
[1754130071034,5.32677324,113760.0,113750.0,0.0123]
[1754130071241,5.32677324,113760.0,113750.0,0.14882]
[1754130071837,5.30701324,113760.0,113750.0,0.14882]
[1754130072034,5.02820477,113760.0,113750.0,0.14882]
[1754130072239,5.02201146,113760.0,113750.0,0.1806]
[1754130072721,4.85277357,113760.0,113750.0,0.1806]
[1754130072944,4.85277357,113760.0,113750.0,0.18275]
[1754130075459,4.85277357,113760.0,113750.0,0.1806]
[1754130075894,4.85277054,113760.0,113750.0,0.1806]
[1754130076297,4.86653088,113760.0,113750.0,0.1806]
[1754130076451,4.86653088,113760.0,113750.0,0.18052]
[1754130077805,4.86653088,113760.0,113750.0,0.18267]
[1754130078541,5.00297088,113760.0,113750.0,0.18267]
[1754130078698,5.00297088,113760.0,113750.0,0.18259]
[1754130080196,5.00297011,113760.0,113750.0,0.18259]
[1754130080584,4.99472234,113760.0,113750.0,0.18259]
[1754130080841,5.00297014,113760.0,113750.0,0.18259]
[1754130081003,4.99472234,113760.0,113750.0,0.18259]
[1754130081204,5.00297008,113760.0,113750.0,0.18259]
[1754130082010,4.99472234,113760.0,113750.0,0.18259]
[1754130082413,5.00297012,113760.0,113750.0,0.04623]
[1754130082613,5.00297012,113760.0,113750.0,0.18247]
[1754130083462,5.00297012,113760.0,113750.0,0.46130212]
[1754130083663,5.27355446,113760.0,113750.0,0.46130212]
[1754130084064,5.27355446,113760.0,113750.0,0.18247]
[1754130084471,5.27355446,113760.0,113750.0,0.04623]
[1754130084724,5.28180041,113760.0,113750.0,0.04623]
[1754130085288,5.28180041,113760.0,113750.0,0.04408]
[1754130085483,5.28180041,113760.0,113750.0,0.043555]
[1754130086752,5.00296829,113760.0,113750.0,0.043555]
[1754130087527,0.15844629,113760.0,113750.0,0.043555]
[1754130087897,5.00296829,113760.0,113750.0,0.045525]
[1754130091354,5.00296893,113760.0,113750.0,0.045525]
[1754130092342,5.00296893,113760.0,113750.0,0.32435712]
[1754130092966,5.00296894,113760.0,113750.0,0.32435712]
[1754130093184,5.002969,113760.0,113750.0,0.32435712]
[1754130094006,0.158447,113760.0,113750.0,0.32435712]
[1754130094233,5.002969,113760.0,113750.0,0.32435712]
[1754130095610,5.002969,113760.0,113750.0,0.045525]
[1754130095788,5.002969,113760.0,113750.0,0.32435712]
[1754130095993,4.98920866,113760.0,113750.0,0.32435712]
[1754130096396,4.98920866,113760.0,113750.0,0.045525]
[1754130096821,5.26804078,113760.0,113750.0,0.045525]
[1754130097030,5.27423255,113760.0,113750.0,0.043555]
[1754130097242,5.27423255,113760.0,113750.0,0.011775]
[1754130097432,5.63485255,113760.0,113750.0,0.011775]
[1754130097635,6.62259297,113760.0,113750.0,0.011775]
[1754130097803,6.08142329,113760.0,113750.0,0.011775]
[1754130098062,6.63908753,113760.0,113750.0,0.011775]
[1754130098252,6.66145604,113760.0,113750.0,0.010775]
[1754130098658,6.68789804,113760.0,113750.0,0.008775]
[1754130099026,6.68789403,113760.0,113750.0,0.009775]
[1754130099631,6.10786128,113760.0,113750.0,0.009775]
[1754130099838,6.66652552,113760.0,113750.0,0.009775]
[1754130101624,6.68488487,113760.0,113750.0,0.009775]
[1754130104383,6.12722063,113760.0,113750.0,0.009775]
[1754130104589,6.68488487,113760.0,113750.0,0.009775]
[1754130104846,6.67112318,113760.0,113750.0,0.009775]
[1754130107533,6.62222349,113760.0,113750.0,0.009775]
[1754130107739,5.94668265,113760.0,113750.0,0.009775]
[1754130107946,5.98044828,113760.0,113750.0,0.009775]
[1754130108145,6.0592804,113760.0,113750.0,0.009775]
[1754130108351,5.78044828,113760.0,113750.0,0.009775]
[1754130108812,5.98044828,113760.0,113750.0,0.009775]
[1754130109456,5.78044828,113760.0,113750.0,0.009775]
[1754130109663,5.96042828,113760.0,113750.0,0.037875]
[1754130109972,5.76042828,113760.0,113750.0,0.037875]
[1754130110181,5.84462817,113760.0,113750.0,0.009775]
[1754130110384,6.06464817,113760.0,113750.0,0.009775]
[1754130110790,6.06463804,113760.0,113750.0,0.009775]
[1754130110993,5.86463804,113760.0,113750.0,0.009775]
[1754130111225,6.06463804,113760.0,113750.0,0.009775]
[1754130111409,6.11749804,113760.0,113750.0,0.009775]
[1754130111638,6.06463804,113760.0,113750.0,0.009775]
[1754130111840,5.86463804,113760.0,113750.0,0.009775]
[1754130112059,6.24044676,113760.0,113750.0,0.009775]
[1754130112264,6.51927888,113760.0,113750.0,0.009775]
[1754130113556,6.50280448,113760.0,113750.0,0.009775]
[1754130113772,6.51927035,113760.0,113750.0,0.009775]
[1754130116595,6.51911035,113760.0,113750.0,0.009775]
[1754130118229,6.49909035,113760.0,113750.0,0.009775]
[1754130119539,1.65456679,113760.0,113750.0,0.009775]
[1754130119748,6.49908879,113760.0,113750.0,0.009775]
[1754130121013,6.49908879,113760.0,113750.0,0.037485]
[1754130121449,6.49908741,113760.0,113750.0,0.037485]
[1754130121663,6.55194741,113760.0,113750.0,0.037485]
[1754130123328,1.70742541,113760.0,113750.0,0.037485]
[1754130123735,6.55194741,113760.0,113750.0,0.037485]
[1754130124174,6.55194088,113760.0,113750.0,0.037485]
[1754130125035,6.55194088,113760.0,113750.0,0.040435]
[1754130125869,6.46774099,113760.0,113750.0,0.040435]
[1754130127505,6.48672622,113760.0,113750.0,0.040435]
[1754130129995,6.48673587,113760.0,113750.0,0.040435]
[1754130131041,5.92907163,113760.0,113750.0,0.040435]
[1754130131265,6.48673587,113760.0,113750.0,0.040435]
[1754130131741,6.57093576,113760.0,113750.0,0.040435]
[1754130132820,6.57094191,113760.0,113750.0,0.040435]
[1754130135755,6.01327767,113760.0,113750.0,0.040435]
[1754130135954,6.57094191,113760.0,113750.0,0.040435]
[1754130136390,1.72641991,113760.0,113750.0,0.040435]
[1754130136591,6.57094191,113760.0,113750.0,0.040435]
[1754130141323,6.5709556,113760.0,113750.0,0.040435]
[1754130143602,5.92909147,113760.0,113750.0,0.040435]
[1754130143852,6.48675571,113760.0,113750.0,0.040435]
[1754130144631,5.70002275,113760.0,113750.0,0.042435]
[1754130144926,5.74610786,113760.0,113750.0,0.042435]
[1754130145227,5.49986597,113760.0,113750.0,0.042435]
[1754130145497,4.88103385,113760.0,113750.0,0.32126712]
[1754130145729,0.03191419,113760.0,113750.0,0.32126712]
[1754130146150,0.37191419,113760.0,113750.0,0.32126712]
[1754130146840,0.35543765,113760.0,113750.0,0.32126712]
[1754130147732,0.36919364,113760.0,113750.0,0.32126712]
[1754130148364,0.35476031,113760.0,113750.0,0.32126712]
[1754130148573,0.35376031,113760.0,113750.0,0.32026712]
[1754130148992,0.35376031,113760.0,113750.0,0.32326712]
[1754130152411,0.35376031,113760.0,113750.0,0.68629913]
[1754130153076,0.35376031,113760.0,113750.0,0.12863489]
[1754130153290,0.35376031,113760.0,113750.0,0.40966481]
[1754130153505,0.35376031,113760.0,113750.0,0.40746701]
[1754130154436,0.35376031,113760.0,113750.0,0.12863489]
[1754130154657,0.35376031,113760.0,113750.0,0.40966481]
[1754130154879,0.35376031,113760.0,113750.0,0.40746701]
[1754130156998,0.35376031,113760.0,113750.0,0.68629913]
[1754130160097,0.35376031,113760.0,113750.0,0.40746701]
[1754130160879,0.35376031,113760.0,113750.0,0.12863489]
[1754130161198,0.35376031,113760.0,113750.0,0.40746701]
[1754130162101,0.35376031,113760.0,113750.0,0.54338701]
[1754130163590,0.34,113760.0,113750.0,0.54338701]
[1754130163819,0.34,113760.0,113750.0,0.26455489]
[1754130164040,0.34,113760.0,113750.0,0.54338701]
[1754130165102,0.35375949,113760.0,113750.0,0.54338701]
[1754130166568,0.35375949,113760.0,113750.0,0.26455489]
[1754130166763,0.35375949,113760.0,113750.0,0.54338701]
[1754130166967,0.35375949,113760.0,113750.0,0.26455489]
[1754130167175,0.35375949,113760.0,113750.0,0.54338701]
[1754130167958,0.35375949,113760.0,113750.0,0.12863489]
[1754130168169,0.35375949,113760.0,113750.0,0.26443489]
[1754130168170,0.63259161,113760.0,113750.0,0.26443489]
[1754130168577,0.63259161,113760.0,113750.0,0.26439489]
[1754130168785,0.35375949,113760.0,113750.0,0.26439489]
[1754130169220,0.63259161,113760.0,113750.0,0.26439489]
[1754130173186,0.35375949,113760.0,113750.0,0.26439489]
[1754130173397,0.63259161,113760.0,113750.0,0.26439489]
[1754130175481,0.63259161,113760.0,113750.0,0.26199989]
[1754130175688,0.63259161,113760.0,113750.0,0.11645489]
[1754130177163,0.63464161,113760.0,113750.0,0.11645489]
[1754130177576,0.66206161,113760.0,113750.0,0.14382489]
[1754130182416,0.66206161,113760.0,113750.0,0.14691489]
[1754130182630,0.38322949,113760.0,113750.0,0.14691489]
[1754130182871,0.29464161,113760.0,113750.0,0.14691489]
[1754130183306,0.29464161,113760.0,113750.0,0.14911269]